bitfinex/quotes_ETHUSD_20260121
["timestamp","ask_amount","ask_price","bid_price","bid_amount"]
[1769015824590,0.575,2883.2,2880.9,6.94219961]
[1769015824902,2.01777,2883.1,2881.0,12.90824476]
[1769015825258,0.575,2883.2,2881.0,12.90824476]
[1769015825541,12.308573,2883.1,2881.0,12.90824476]
[1769015825722,5.300127,2883.1,2881.0,12.90824476]
[1769015825890,5.300127,2883.1,2881.0,12.2140248]
[1769015826090,10.40582724,2883.0,2880.2,3.47198111]
[1769015826289,30.0,2882.9,2880.1,12.2140248]
[1769015826542,19.406856,2882.9,2880.2,12.2140248]
[1769015826747,5.42699857,2883.9,2880.2,12.2140248]
[1769015826748,0.18058259,2884.4,2881.9,12.2140248]
[1769015827039,28.702604,2884.8,2883.1,19.406856]
[1769015827358,16.729375,2884.7,2883.2,19.406856]
[1769015827619,5.65,2884.7,2883.3,19.406856]
[1769015827937,0.0008,2884.9,2881.9,12.2140248]
[1769015827938,11.882965,2884.8,2882.8,19.406856]
[1769015828148,6.93347102,2884.9,2883.5,19.406856]
[1769015828149,0.0008,2884.9,2883.5,19.406856]
[1769015828420,0.0008,2884.9,2884.0,19.406856]
[1769015828590,0.18061466,2885.4,2884.5,19.406856]
[1769015828928,40.70981944,2886.5,2884.0,19.406856]
[1769015829088,28.702604,2886.4,2884.0,19.406856]
[1769015829705,12.00721544,2886.0,2883.6,19.406856]
[1769015829900,28.702604,2885.7,2883.2,19.406856]
[1769015830102,12.00721544,2885.4,2883.1,19.003256]
[1769015830302,12.00721544,2885.4,2881.4,3.47045281]
[1769015830303,12.00721544,2885.0,2881.3,3.4705603]
[1769015830615,12.00721544,2885.0,2881.1,8.89782389]
[1769015830616,19.135116,2884.9,2882.9,19.003256]
[1769015830811,13.86193512,2885.6,2883.4,19.003256]
[1769015830812,21.565327,2885.5,2883.4,19.003256]
[1769015831013,3.790204,2885.3,2883.6,19.003256]
[1769015831227,3.790204,2885.3,2883.2,10.40510541]
[1769015831228,28.702604,2885.6,2883.8,19.003256]
[1769015831531,28.702604,2885.6,2883.6,19.003256]
[1769015831704,28.702604,2885.6,2883.9,19.003256]
[1769015831909,28.702604,2885.6,2883.6,19.003256]
[1769015832151,6.93078326,2885.7,2883.9,3.46748216]
[1769015832152,29.13739298,2885.4,2883.9,3.46748216]
[1769015832447,29.13739298,2885.4,2883.7,3.4677448]
[1769015832448,16.667196,2885.3,2883.7,19.003256]
[1769015832647,18.125866,2885.4,2883.9,19.003256]
[1769015832850,18.125866,2885.4,2883.9,3.46749582]
[1769015833147,18.125866,2885.4,2882.4,3.46925867]
[1769015833315,3.39115248,2885.3,2883.9,22.47076985]
[1769015833639,0.574,2886.1,2884.6,19.003256]
[1769015833841,12.00721544,2887.1,2884.8,19.003256]
[1769015834131,3.4631036,2887.6,2885.7,3.46536368]
[1769015834132,9.46953,2887.6,2885.7,3.46536368]
[1769015834294,12.00721544,2887.5,2884.7,3.46646715]
[1769015834501,12.00721544,2886.7,2882.9,3.46865765]
[1769015834745,18.329689,2886.6,2884.4,19.003256]
[1769015834982,28.702604,2886.5,2884.4,19.003256]
[1769015835184,0.574,2887.1,2885.0,19.003256]
[1769015835382,12.109762,2887.0,2885.0,19.003256]
[1769015835658,28.702604,2886.8,2885.1,19.003256]
[1769015835839,28.702604,2886.8,2883.5,8.89490415]
[1769015836038,28.702604,2886.8,2884.2,19.003256]
[1769015836354,22.385617,2886.6,2884.4,19.003256]
[1769015836663,28.702604,2886.5,2884.4,19.003256]
[1769015836852,28.702604,2886.3,2884.4,19.003256]
[1769015837054,5.61100759,2887.4,2885.2,19.003256]
[1769015837252,12.269037,2886.9,2885.4,19.003256]
[1769015837563,28.702604,2887.2,2885.5,19.003256]
[1769015838096,3.46248398,2888.1,2885.6,19.003256]
[1769015838247,2.485876,2888.0,2886.4,19.003256]
[1769015838429,2.485876,2888.0,2886.5,19.003256]
[1769015838430,3.528828,2888.0,2886.5,19.003256]
[1769015838639,0.574,2888.1,2886.2,19.003256]
[1769015838640,23.95869,2887.8,2886.2,19.003256]
[1769015838843,0.001,2886.3,2886.2,19.003256]
[1769015839085,28.456074,2887.8,2886.2,19.003256]
[1769015839232,15.457964,2887.7,2885.8,19.003256]
[1769015839431,15.457964,2887.7,2884.9,3.46627296]
[1769015839432,28.702604,2887.8,2885.1,3.46603545]
[1769015839635,7.327077,2887.6,2885.2,0.34660355]
[1769015839833,7.327077,2887.6,2886.0,3.46498734]
[1769015840034,0.574,2887.7,2886.0,10.39499426]
[1769015840356,0.20074687,2889.6,2887.6,19.003256]
[1769015840548,0.0201968,2889.6,2888.1,19.003256]
[1769015840761,0.0201968,2889.6,2888.4,19.003256]
[1769015841242,0.0201968,2889.6,2888.9,19.003256]
[1769015841440,0.0201968,2889.6,2888.4,19.003256]
[1769015841795,8.20276,2891.2,2889.2,19.003256]
[1769015841952,3.45829459,2891.6,2889.4,19.003256]
[1769015842154,12.57104028,2892.2,2887.9,12.48542429]
[1769015842155,3.197399,2891.3,2889.7,3.46056684]
[1769015842468,0.573,2891.3,2887.9,12.40394683]
[1769015842670,28.702604,2891.2,2889.0,0.560086]
[1769015842870,28.702604,2891.2,2888.7,3.46170901]
[1769015843069,28.702604,2891.0,2888.1,3.46244421]
[1769015843254,28.702604,2890.8,2888.4,3.46203672]
[1769015843464,12.3905171,2890.6,2886.3,5.42699857]
[1769015843675,9.39115105,2890.9,2886.3,5.42699857]
[1769015843676,28.702604,2890.3,2887.9,3.4627227]
[1769015843979,8.81815105,2890.9,2886.3,5.42699857]
[1769015843980,12.3905171,2890.0,2887.2,0.560086]
[1769015844147,28.702604,2889.7,2887.4,3.4633234]
[1769015844348,3.46044708,2889.8,2887.4,10.3899702]
[1769015844662,7.564786,2889.6,2886.3,5.42699857]
[1769015844840,7.564786,2889.6,2887.4,0.560086]
[1769015845266,28.702604,2889.4,2887.4,0.560086]
[1769015845488,28.702604,2889.2,2887.4,0.560086]
[1769015845645,28.702604,2889.2,2887.3,0.560086]
[1769015845845,28.702604,2889.2,2887.1,0.560086]
[1769015846055,4.920829,2889.0,2887.3,6.92685549]
[1769015846254,9.229426,2889.1,2886.2,3.46471018]
[1769015846490,10.376426,2888.9,2887.4,0.560086]
[1769015846988,3.4601756,2890.1,2886.1,17.324417]
[1769015846989,0.573,2888.8,2887.8,0.560086]
[1769015847278,0.573,2889.5,2888.1,0.560086]
[1769015847443,9.351669,2889.4,2887.9,0.560086]
[1769015847645,12.3905171,2891.1,2888.3,0.560086]
[1769015847877,12.3905171,2891.1,2889.0,0.560086]
[1769015847878,4.969193,2890.7,2889.0,0.560086]
[1769015848079,11.709011,2890.5,2889.0,0.560086]
[1769015848385,0.573,2890.6,2887.2,3.46351086]
[1769015848386,28.05996,2890.3,2887.2,3.46351086]
[1769015848685,28.05996,2890.3,2887.6,0.560086]
[1769015848686,41.0931211,2890.2,2887.6,0.560086]
[1769015848854,28.702604,2890.0,2887.9,0.560086]
[1769015849050,28.702604,2890.0,2886.3,5.42699857]
[1769015849051,16.006281,2889.8,2888.2,4.02233165]
[1769015849252,11.66689,2890.3,2888.3,0.560086]
[1769015849456,3.45972875,2890.4,2887.4,3.46328725]
[1769015849457,9.092092,2890.1,2887.4,3.46322084]
[1769015849651,9.092092,2890.1,2888.2,0.560086]
[1769015849872,28.702604,2889.9,2888.0,0.560086]
[1769015850097,28.702604,2889.9,2888.0,4.02260787]
[1769015850296,28.702604,2889.7,2887.7,0.560086]
[1769015850880,21.146163,2889.6,2887.7,0.560086]
[1769015851215,2.258862,2889.5,2887.7,0.560086]
[1769015851399,0.2831862,2889.4,2887.7,0.560086]
[1769015851709,23.746151,2889.3,2887.5,0.560086]
[1769015851879,0.573,2889.2,2887.5,0.560086]
[1769015852079,7.274368,2889.1,2887.6,3.4629956]
[1769015852289,2.846712,2889.0,2887.5,0.560086]
[1769015852502,0.63080538,2888.9,2887.5,0.560086]
[1769015853420,0.2831862,2889.4,2887.5,6.92640692]
[1769015853605,0.573,2889.3,2887.9,0.560086]
[1769015854322,0.573,2889.3,2886.2,3.46468278]
[1769015854323,2.452892,2889.2,2886.2,3.46468278]
[1769015854502,2.452892,2889.2,2886.1,0.002]
[1769015854503,14.8434091,2889.2,2887.0,0.560086]
[1769015854703,28.702604,2889.0,2886.7,3.46415459]
[1769015854916,12.3905171,2889.1,2886.7,3.46409791]
[1769015854917,28.702604,2888.8,2886.7,3.46409791]
[1769015855114,28.702604,2888.8,2886.1,0.002]
[1769015855314,28.702604,2888.8,2886.8,0.560086]
[1769015855626,28.702604,2888.6,2886.7,3.46408217]
[1769015855927,28.702604,2888.6,2886.6,0.560086]
[1769015855928,4.352963,2888.4,2886.6,0.560086]
[1769015856102,1.9,2888.6,2886.5,3.46437176]
[1769015856437,1.9,2888.6,2886.4,0.002]
[1769015856438,28.702604,2888.3,2886.6,0.560086]
[1769015856651,11.273982,2888.3,2886.6,0.560086]
[1769015856791,0.573,2888.2,2886.6,0.560086]
[1769015856991,0.573,2888.2,2887.0,0.560086]
[1769015857311,0.573,2888.1,2886.6,0.560086]
[1769015857516,28.702604,2888.0,2886.4,0.002]
[1769015857722,28.702604,2887.8,2886.4,0.002]
[1769015857899,2.9275604,2887.9,2886.4,0.002]
[1769015858096,0.573,2888.1,2886.6,0.560086]
[1769015858397,10.38781161,2888.0,2886.6,0.560086]
[1769015858598,0.573,2887.9,2886.4,0.002]
[1769015859197,0.573,2887.8,2886.4,0.002]
[1769015859421,0.573,2887.7,2886.4,0.002]
[1769015859637,30.0,2887.5,2886.4,0.002]
[1769015860001,0.573,2887.4,2886.4,0.002]
[1769015860408,0.573,2887.4,2886.1,0.002]
[1769015860409,30.0,2887.3,2886.1,0.002]
[1769015860622,30.0,2887.3,2885.1,3.46604646]
[1769015860623,0.573,2887.2,2885.1,10.39821518]
[1769015860815,2.9677,2887.1,2885.1,6.93213082]
[1769015861140,0.573,2887.0,2885.1,10.39821518]
[1769015861340,0.573,2887.0,2885.1,6.93213082]
[1769015861341,30.0,2886.9,2885.1,6.93213082]
[1769015861812,30.0,2887.3,2885.1,10.39821518]
[1769015862013,30.0,2887.1,2885.1,10.39821518]
[1769015862228,15.927,2887.1,2885.0,0.002]
[1769015862422,2.223,2887.0,2885.0,0.34883834]
[1769015862624,0.573,2887.3,2885.0,0.34883834]
[1769015862826,30.0,2887.2,2885.0,0.002]
[1769015863139,0.573,2887.3,2885.0,0.002]
[1769015863302,30.0,2887.2,2885.0,0.002]
[1769015863738,30.0,2886.8,2885.0,0.002]
[1769015863931,17.31552704,2887.6,2885.0,0.002]
[1769015863932,30.0,2886.6,2885.0,0.002]
[1769015864133,3.39115248,2886.5,2885.0,0.002]
[1769015864334,12.3905171,2887.7,2885.0,0.002]
[1769015864640,30.0,2887.5,2885.3,0.002]
[1769015864836,7.871,2887.3,2885.3,0.002]
[1769015865046,30.0,2888.0,2885.3,0.002]
[1769015865253,30.0,2888.3,2885.3,12.40594683]
[1769015865452,20.093,2888.1,2885.3,12.40594683]
[1769015865617,20.093,2888.1,2885.3,0.002]
[1769015865946,21.993,2888.1,2885.3,0.002]
[1769015866145,30.0,2888.0,2885.3,0.002]
[1769015866649,30.0,2887.8,2885.3,0.002]
[1769015866835,10.38817131,2887.9,2885.3,0.002]
[1769015866836,30.0,2887.6,2885.3,0.002]
[1769015867043,10.58,2887.4,2885.3,0.002]
[1769015867217,10.261,2887.4,2885.3,0.002]
[1769015867418,0.573,2887.3,2885.3,0.002]
[1769015867651,3.39115248,2887.7,2885.3,0.002]
[1769015867652,3.39115248,2887.7,2885.3,12.40138324]
[1769015867826,0.573,2887.8,2885.4,12.39938324]
[1769015868151,30.0,2887.7,2885.4,12.39938324]
[1769015868351,6.924009,2888.5,2885.4,12.39938324]
[1769015868552,0.573,2887.7,2885.5,13.86241552]
[1769015868851,30.0,2887.6,2885.5,6.93120776]
[1769015869051,9.991,2887.4,2885.6,0.69312078]
[1769015869218,20.576,2887.3,2885.6,0.69312078]
[1769015869415,30.0,2887.4,2885.6,0.69312078]
[1769015869651,3.0573,2887.5,2885.6,0.69312078]
[1769015869853,0.573,2887.5,2885.6,0.69312078]
[1769015870627,0.573,2887.5,2885.7,6.93072736]
[1769015870831,1.9,2887.3,2885.3,0.002]
[1769015871025,1.9,2887.3,2885.6,6.93095863]
[1769015871382,10.0,2888.1,2885.6,13.86192619]
[1769015871552,0.573,2887.5,2885.6,10.39644241]
[1769015871736,0.573,2887.5,2885.6,6.93095863]
[1769015872061,0.573,2887.4,2885.6,10.39644241]
[1769015872224,12.00257932,2887.9,2885.6,10.39644241]
[1769015872422,30.0,2887.7,2885.6,10.39644241]
[1769015872626,30.0,2887.7,2885.4,3.46568435]
[1769015872627,3.809,2887.5,2885.3,0.002]
[1769015872843,13.809,2887.5,2885.3,0.002]
[1769015873160,30.0,2887.3,2885.3,0.002]
[1769015873352,12.175,2887.3,2885.3,0.002]
[1769015873559,9.477,2887.4,2885.3,0.002]
[1769015873863,1.005,2887.3,2885.3,0.002]
[1769015874063,30.0,2887.4,2885.3,0.002]
[1769015874625,30.0,2887.3,2885.3,0.002]
[1769015875070,42.00257932,2887.3,2885.3,0.002]
[1769015875271,30.0,2887.2,2885.3,0.002]
[1769015875436,42.00257932,2887.0,2885.3,0.002]
[1769015875631,30.0,2886.9,2885.3,0.002]
[1769015875838,0.573,2886.8,2885.3,0.002]
[1769015876131,11.251,2886.7,2885.3,0.002]
[1769015876332,0.573,2886.6,2885.3,0.002]
[1769015876546,6.9288065,2886.5,2885.5,0.002]
[1769015876748,30.0,2886.4,2885.5,0.002]
[1769015877072,7.774,2886.2,2885.5,0.002]
[1769015877291,30.0,2886.8,2885.5,0.002]
[1769015877437,10.0,2887.6,2885.5,0.002]
[1769015877641,30.0,2887.1,2885.5,0.002]
[1769015878172,0.001,2887.5,2885.5,0.002]
[1769015878482,0.573,2887.4,2885.5,0.002]
[1769015879034,0.001,2887.5,2885.5,0.002]
[1769015879240,0.573,2887.4,2885.5,0.002]
[1769015879577,30.0,2887.3,2885.5,0.002]
[1769015879781,30.0,2887.1,2885.5,0.002]
[1769015880484,30.0,2887.1,2885.0,0.002]
[1769015880485,12.82487025,2886.6,2885.0,0.002]
[1769015880665,30.0,2886.2,2883.1,13.87595508]
[1769015880866,30.0,2886.0,2883.1,22.74307304]
[1769015881179,30.0,2885.8,2883.1,22.74307304]
[1769015881500,30.0,2885.8,2883.1,26.21156181]
[1769015881501,0.573,2885.8,2883.1,26.21156181]
[1769015881873,3.46404323,2886.8,2883.1,26.21156181]
[1769015882083,0.573,2886.7,2883.6,12.97041783]
[1769015882298,30.0,2886.6,2883.6,12.97041783]
[1769015882497,30.0,2886.4,2883.6,12.97041783]
[1769015882699,30.0,2886.2,2883.7,10.4033013]
[1769015882870,12.82487025,2885.9,2883.7,6.9355342]
[1769015883070,0.573,2885.9,2883.7,13.8710684]
[1769015883298,23.208,2886.4,2883.9,12.97241783]
[1769015883502,24.439,2887.1,2884.1,12.97041783]
[1769015883835,30.0,2887.0,2884.4,14.74808977]
[1769015883965,30.0,2887.0,2884.4,12.97041783]
[1769015884165,30.0,2887.0,2884.4,14.74808977]
[1769015884371,30.0,2887.0,2884.4,12.97041783]
[1769015884666,0.573,2887.1,2884.4,12.97041783]
[1769015884667,30.0,2886.8,2884.5,10.40041599]
[1769015885098,30.0,2886.8,2884.5,13.86722132]
[1769015885404,12.82587025,2887.5,2884.8,14.73000966]
[1769015885405,0.001,2887.5,2884.8,14.73000966]
[1769015885607,0.001,2887.5,2885.0,12.97041783]
[1769015885806,30.0,2887.4,2884.6,0.573]
[1769015886101,0.001,2887.5,2884.5,10.40041599]
[1769015886102,12.82487025,2887.1,2884.5,10.40041599]
[1769015886313,30.0,2887.0,2884.5,13.86722132]
[1769015886474,16.836,2887.0,2884.5,17.33402665]
[1769015886674,16.836,2887.0,2884.5,10.40041599]
[1769015886902,30.0,2886.8,2884.5,10.40041599]
[1769015887207,30.0,2886.8,2884.5,3.46680533]
[1769015887370,12.82487025,2886.7,2884.4,6.93385106]
[1769015887586,30.0,2886.5,2884.4,10.40077659]
[1769015887792,25.131,2886.5,2884.4,13.86770212]
[1769015888012,3.0,2886.4,2884.4,13.86770212]
[1769015888220,30.0,2886.5,2884.4,13.86770212]
[1769015888617,12.82487025,2887.3,2884.4,19.11229959]
[1769015888825,40.573,2887.2,2884.4,17.33462765]
[1769015889119,40.573,2887.2,2884.4,13.86770212]
[1769015889120,30.0,2886.9,2884.4,13.86770212]
[1769015889421,12.82487025,2887.0,2884.4,13.86770212]
[1769015889422,3.39115248,2886.8,2884.4,30.30504548]
[1769015889623,30.0,2886.9,2884.6,0.002]
[1769015889923,0.001,2886.3,2884.6,0.002]
[1769015891535,12.82487025,2886.1,2884.6,0.002]
[1769015891828,0.001,2886.3,2884.6,0.002]
[1769015891829,30.0,2885.8,2884.6,0.002]
[1769015892033,14.72487025,2885.9,2884.6,0.002]
[1769015892230,1.52978703,2885.8,2884.6,0.002]
[1769015892595,1.9,2885.9,2884.6,0.002]
[1769015893698,0.001,2886.3,2884.6,0.002]
[1769015894100,6.93030565,2886.3,2884.6,0.002]
[1769015894438,12.82487025,2885.9,2884.4,0.002]
[1769015894600,30.0,2885.8,2884.4,0.002]
[1769015894801,30.0,2885.6,2884.4,0.002]
[1769015895029,24.09,2885.4,2884.4,0.002]
[1769015895255,14.03,2885.3,2883.9,0.002]
[1769015895412,30.0,2885.1,2883.9,0.002]
[1769015895618,0.573,2885.0,2883.9,0.002]
[1769015895824,3.0573,2884.9,2883.9,0.002]
[1769015896020,0.573,2885.0,2883.9,0.002]
[1769015896230,30.0,2884.9,2883.9,0.002]
[1769015896748,2.224,2884.9,2883.9,0.002]
[1769015897443,30.0,2884.8,2883.9,0.002]
[1769015897642,30.0,2884.9,2883.9,0.002]
[1769015897942,11.061,2884.7,2883.9,0.002]
[1769015898166,30.0,2884.9,2883.9,0.002]
[1769015898366,30.0,2884.9,2883.2,0.002]
[1769015898367,42.34240408,2884.8,2883.2,0.002]
[1769015898651,6.9327114,2884.9,2882.4,3.4692971]
[1769015898652,30.0,2884.4,2882.4,3.4692971]
[1769015898823,5.29115248,2884.7,2882.3,3.46938342]
[1769015898824,42.34240408,2884.2,2882.3,3.46938342]
[1769015899029,42.34240408,2884.2,2882.0,0.002]
[1769015899030,30.0,2883.9,2882.0,0.002]
[1769015899831,0.573,2883.8,2882.0,0.002]
[1769015900223,0.573,2883.9,2882.0,0.002]
[1769015901154,5.29115248,2884.7,2882.0,0.002]
[1769015901155,5.29115248,2884.7,2882.0,11.70207895]
[1769015901335,12.34240408,2884.6,2882.0,0.002]
[1769015901649,30.0,2884.4,2882.0,0.002]
[1769015902044,10.573,2884.3,2882.0,0.002]
[1769015902238,0.573,2884.3,2882.0,0.002]
[1769015902445,0.573,2884.3,2882.5,0.002]
[1769015902626,1.0573,2884.2,2882.5,0.002]
[1769015903249,30.0,2885.0,2882.5,0.002]
[1769015903458,1.9,2884.0,2882.5,0.002]
[1769015904157,30.0,2884.4,2882.5,0.002]
[1769015905038,36.93386444,2884.4,2882.5,0.002]
[1769015905258,30.0,2884.3,2882.5,0.002]
[1769015905564,24.227,2884.1,2882.5,0.002]
[1769015905755,30.0,2884.1,2882.5,0.002]
[1769015906329,0.573,2884.0,2882.5,0.002]
[1769015906750,0.573,2884.1,2882.5,0.002]
[1769015906954,30.0,2884.0,2882.5,0.002]
[1769015907157,3.0573,2883.9,2882.5,0.002]
[1769015907467,30.0,2883.6,2882.3,0.002]
[1769015907759,3.643,2883.4,2882.3,0.002]
[1769015907942,0.573,2883.5,2882.3,0.002]
[1769015908123,30.0,2883.4,2882.3,0.002]
[1769015908320,42.34240408,2883.4,2882.3,0.002]
[1769015908553,30.0,2883.2,2882.0,0.002]
[1769015908769,0.573,2883.1,2882.0,0.002]
[1769015909626,1.9,2883.3,2882.0,0.002]
[1769015909827,14.825,2883.2,2882.0,0.002]
[1769015910027,8.83650794,2883.3,2882.0,0.002]
[1769015910028,1.9,2883.3,2882.0,0.002]
[1769015910343,2.09,2883.3,2882.0,0.002]
[1769015912029,12.34240408,2884.7,2882.0,11.70207895]
[1769015912230,15.80788786,2885.6,2882.5,11.70007895]
[1769015912424,3.587,2885.5,2882.7,11.70007895]
[1769015912646,30.0,2886.1,2883.1,11.70007895]
[1769015912849,28.855,2886.0,2883.3,11.70007895]
[1769015913060,30.0,2886.2,2883.3,11.70007895]
[1769015913364,30.0,2886.0,2883.4,17.3406395]
[1769015913550,3.0,2885.9,2883.4,29.04071845]
[1769015913749,30.0,2886.0,2883.4,25.57259055]
[1769015914061,4.03867976,2886.3,2883.4,25.57259055]
[1769015914062,42.34240408,2885.9,2883.4,10.4043837]
[1769015914234,30.0,2885.7,2883.4,13.8725116]
[1769015914558,3.46564331,2886.3,2883.5,11.70007895]
[1769015914772,0.001,2884.0,2883.4,6.9362558]
[1769015915067,30.0,2885.9,2883.5,0.69362558]
[1769015915240,3.46478101,2886.2,2883.6,13.87154944]
[1769015915448,0.574,2886.3,2883.6,29.03951575]
[1769015916066,30.0,2886.2,2883.6,26.14462839]
[1769015916234,42.34240408,2886.2,2883.6,25.57162839]
[1769015916434,30.0,2886.0,2883.7,0.60916778]
[1769015916831,3.39115248,2886.1,2883.7,12.30924673]
[1769015917141,0.574,2886.3,2883.7,12.30924673]
[1769015917459,0.574,2886.3,2883.8,17.33823425]
[1769015917669,0.001,2886.3,2884.2,13.42129494]
[1769015917888,0.001,2886.3,2884.5,13.47970674]
[1769015918164,0.001,2886.3,2884.0,5.39862919]
[1769015918165,10.219,2887.4,2884.8,13.45967078]
[1769015918487,2.25624041,2887.3,2885.0,11.70007895]
[1769015918780,0.001,2887.5,2885.0,11.70007895]
[1769015919263,0.001,2887.5,2885.1,17.3304218]
[1769015919450,0.001,2887.5,2885.5,11.70007895]
[1769015919653,0.001,2887.5,2885.6,11.70007895]
[1769015919853,0.001,2887.5,2885.5,11.70007895]
[1769015920043,0.001,2887.5,2885.7,11.70007895]
[1769015920244,0.001,2887.5,2885.8,0.573]
[1769015921465,0.001,2887.5,2885.9,10.39537059]
[1769015921872,0.001,2887.5,2885.9,13.86049412]
[1769015922035,10.0,2888.7,2886.0,13.42886491]
[1769015922240,2.23424041,2888.6,2886.1,12.39370453]
[1769015922549,2.23424041,2888.6,2886.2,1.75611069]
[1769015922737,2.23424041,2888.6,2886.1,14.12213186]
[1769015922933,2.23424041,2888.6,2886.2,1.75611069]
[1769015923166,30.0,2889.3,2886.5,1.75311983]
[1769015923371,30.0,2889.3,2886.6,19.10793449]
[1769015923773,30.0,2889.3,2886.6,17.32141615]
[1769015923959,30.0,2889.3,2886.7,1.73723819]
[1769015924164,30.0,2889.3,2886.6,17.32141615]
[1769015924338,13.39115248,2889.2,2886.7,0.60916778]
[1769015924545,3.39115248,2889.2,2886.7,0.60916778]
[1769015925157,3.39115248,2889.2,2886.9,11.70007895]
[1769015925348,12.34240408,2889.9,2887.3,14.61441026]
[1769015925654,12.34240408,2889.9,2887.3,12.86132921]
[1769015925854,12.34240408,2889.9,2887.4,1.78839674]
[1769015926045,12.34240408,2889.9,2887.1,17.3184164]
[1769015926046,12.11502486,2889.8,2887.5,0.573]
[1769015926246,1.55753522,2889.7,2887.5,0.573]
[1769015926445,1.55753522,2889.7,2887.1,17.3184164]
[1769015926667,12.11502486,2889.5,2887.1,10.39104984]
[1769015926884,12.11502486,2889.2,2887.1,6.74762296]
[1769015927079,0.001,2889.0,2887.1,6.74762296]
[1769015927377,30.0,2888.8,2887.1,6.74762296]
[1769015927578,30.0,2888.8,2887.0,10.39140975]
[1769015927784,3.0001,2888.9,2887.0,13.855213]
[1769015928089,0.001,2889.0,2887.0,13.855213]
[1769015928484,12.11502486,2888.8,2886.9,3.46388211]
[1769015928685,12.11502486,2888.6,2886.0,3.46495309]
[1769015928899,30.0,2888.3,2886.8,3.46400631]
[1769015929088,30.0,2888.3,2886.9,3.46391771]
[1769015929289,30.0,2888.3,2886.1,0.34649531]
[1769015929290,12.11502486,2888.2,2886.1,0.34649531]
[1769015929585,12.11502486,2888.2,2884.8,1.75959183]
[1769015929586,42.11502486,2887.9,2885.2,0.573]
[1769015929752,30.0,2887.8,2885.2,0.573]
[1769015929953,12.11502486,2887.9,2885.3,0.40390691]
[1769015929954,3.39115248,2887.7,2885.3,0.40390691]
[1769015930153,30.0,2887.4,2884.8,17.33222405]
[1769015930387,12.11502486,2887.1,2884.4,0.002]
[1769015930554,12.11502486,2886.9,2884.4,0.002]
[1769015930754,42.11502486,2886.6,2884.7,3.4665411]
[1769015931055,12.11502486,2886.3,2884.4,0.002]
[1769015931256,0.573,2886.5,2884.7,3.46656092]
[1769015931257,4.26,2886.0,2884.7,3.46656092]
[1769015931585,4.26,2886.0,2884.4,0.002]
[1769015931751,0.573,2886.2,2884.4,0.002]
[1769015931952,30.573,2886.8,2884.4,0.002]
[1769015932310,12.11502486,2886.4,2884.4,0.002]
[1769015932601,12.11502486,2886.0,2884.1,0.002]
[1769015932780,30.0,2885.7,2884.1,0.002]
[1769015932992,30.0,2885.5,2884.1,0.002]
[1769015933514,11.826,2885.5,2884.1,0.002]
[1769015933804,0.573,2885.6,2884.1,0.002]
[1769015934164,30.0,2885.5,2884.1,0.002]
[1769015934362,3.0573,2885.4,2884.1,0.002]
[1769015934589,30.0,2885.5,2884.1,0.002]
[1769015935598,33.46562428,2885.5,2884.1,0.002]
[1769015935802,24.514,2885.5,2884.1,0.002]
[1769015935979,0.573,2885.7,2884.1,0.002]
[1769015936177,30.0,2885.6,2884.1,0.002]
[1769015936381,30.0,2885.2,2884.1,0.002]
[1769015936588,12.11502486,2885.3,2884.1,0.002]
[1769015936792,30.0,2885.9,2884.1,0.002]
[1769015937112,30.0,2885.8,2884.1,0.002]
[1769015937279,5.052,2886.2,2884.1,0.002]
[1769015937472,4.964,2886.1,2884.1,0.002]
[1769015937672,0.84431525,2886.2,2884.1,0.002]
[1769015937906,0.573,2886.4,2884.1,0.002]
[1769015938304,0.573,2887.2,2884.2,12.86132921]
[1769015938514,0.573,2887.2,2884.1,0.002]
[1769015938515,0.573,2887.2,2884.5,1.77962779]
[1769015938718,0.573,2887.2,2884.5,14.640957]
[1769015938906,0.573,2887.2,2884.6,1.79405936]
[1769015939105,1.0573,2887.1,2884.7,12.64581915]
[1769015939273,0.573,2887.2,2884.9,12.64581915]
[1769015939470,12.38415076,2887.9,2885.1,17.3304218]
[1769015939722,30.0,2887.7,2885.1,17.3304218]
[1769015940021,0.573,2887.9,2885.1,17.3304218]
[1769015940022,30.0,2887.5,2885.1,10.39825308]
[1769015940236,11.81115076,2887.2,2885.1,3.46608436]
[1769015940397,11.81115076,2887.2,2885.2,0.69322513]
[1769015940398,16.848,2887.0,2885.2,0.69322513]
[1769015940598,30.0,2887.0,2885.2,0.69322513]
[1769015941024,3.39115248,2887.1,2885.2,0.69322513]
[1769015941198,11.81115076,2887.2,2885.2,0.69322513]
[1769015941402,0.573,2887.3,2885.2,0.69322513]
[1769015941605,0.573,2887.3,2885.3,17.3292205]
[1769015942142,0.573,2887.3,2885.3,29.97503965]
[1769015942486,15.27307995,2888.6,2885.5,12.64581915]
[1769015942691,30.0,2888.4,2885.7,12.64581915]
[1769015942887,1.527308,2888.5,2885.6,0.60956823]
[1769015942888,1.527308,2888.5,2886.1,1.72842733]
[1769015943093,1.527308,2888.5,2886.0,5.40258612]
[1769015943094,11.81115076,2889.3,2886.2,12.64581915]
[1769015943299,11.81115076,2889.3,2886.4,12.64581915]
[1769015943623,11.81115076,2889.3,2886.9,17.31961615]
[1769015943790,3.46606764,2890.6,2886.9,17.31961615]
[1769015943791,11.81115076,2890.0,2887.4,5.40258612]